Cogmind - Beta 10.2 @@@ ROGUE MODE // 2021.03.30 @ 08:47:27 Player: Slaanesh Result: Destroyed by S-10 Pest with Light Assault Rifle Performance ------------- Evolutions (0) 0 Regions Visited (1) 200 Robots Destroyed (5) 25 Value Destroyed (135) 135 Prototype IDs (0) 0 Alien Tech Used (0) 0 Bonus (0) 0 TOTAL SCORE: 360 Bonus ------- None Cogmind --------- Core Integrity 0/250 Matter 300/300 Energy 99/100 System Corruption 2% Temperature Cool (0) Movement Core (50) Location -10/Materials Parts ------- > --- POWER (1) -------- (None) > --- PROPULSION (2) --- (None) > --- UTILITY (2) ------ (None) > --- WEAPON (2) ------- (None) > --- INVENTORY (4) ---- (None) Peak State ------------ > --- POWER ------------ Light Ion Engine > --- PROPULSION ------- Wheel Wheel > --- UTILITY ---------- (None) > --- WEAPON ----------- Light Assault Rifle Light Assault Rifle > --- INVENTORY -------- (None) [Rating: 5] Favorites ----------- Power Light Ion Engine Engine Light Ion Engine Propulsion Wheel Leg Aluminum Leg Wheel Wheel Utility None Weapon Light Assault Rifle Ballistic Gun Light Assault Rifle Launcher Grenade Launcher Build | -11 -10 ------- Run | Scr Mat Slots Evolved . | . . Power . | . . Propulsion . | . . Utility . | . . Weapon . | . . Parts Attached 10 | 5 5 Power 2 | 1 1 Engine 2 | 1 1 Core . | . . Reactor . | . . Propulsion 4 | 2 2 Treads . | . . Leg 2 | . 2 Wheel 2 | 2 . Hover . | . . Flight . | . . Utility . | . . Device . | . . Storage . | . . Processor . | . . Hackware . | . . Protection . | . . Artifact . | . . Weapon 4 | 2 2 Energy Gun . | . . Energy Cannon . | . . Ballistic Gun 3 | 2 1 Ballistic Cannon . | . . Launcher 1 | . 1 Special Weapon . | . . Impact Weapon . | . . Slashing Weapon . | . . Piercing Weapon . | . . Special Melee Weapon . | . . Unidentified Prototypes . | . . Parts Lost 9 | . 9 Power 2 | . 2 Propulsion 4 | . 4 Utility . | . . Weapon 3 | . 3 Highest Loss Streak 9 | . 9 Average Slot Usage (%) 60 | . 60 Engine 13 | . 13 Leg 6 | . 6 Wheel 17 | . 17 Ballistic Gun 23 | . 23 Launcher 1 | . 1 Naked Turns 10 | . 10 Heaviest Build 7 | 5 7 Greatest Support 20 | 20 20 Greatest Overweight (x) 1 | . 1 Average Overweight (x) . | . . Largest Inventory Capacity 4 | 4 4 Average Capacity 4 | 4 4 Most Carried 4 | 2 4 Average Carried 1 | . 2 Final Capacity 4 | 4 4 Final Carried 2 | 2 . Class Distribution -------------------- 100% | Mutant Dominant Class ---------------- Mutant | -10/Materials Resources | -11 -10 ----------- Run | Scr Mat Matter Collected 314 | 272 42 Remotely . | . . Salvage Created 130 | 34 96 Parts 10 | 2 8 Haulers Intercepted . | . . Recyclers Shooed . | . . Parts Field Recycled . | . . Retrieved Matter . | . . Parts Self-Destructed . | . . Prevented . | . . Kills | -11 -10 ------- Run | Scr Mat Combat Hostiles Destroyed 5 | 1 4 Guns 3 | 1 2 AOE 2 | . 2 Classes Destroyed 2 | 1 1 Swarmer 2 | . 2 Grunt 3 | 1 2 Best Kill Streak 2 | 1 2 Combat Bots Only 2 | 1 2 Max Kills in Single Turn 2 | 1 2 Gunslinging . | . . Exploded 2 | . 2 Melee . | . . Uniques/NPCs Destroyed . | . . Combat | -11 -10 -------- Run | Scr Mat Damage Taken 766 | 108 658 Core 257 | 31 226 Absorbed by Shields . | . . Core Remaining (%) 87 | 87 . Volleys Fired 27 | 11 16 Largest 2 | 2 2 Hottest 40 | 40 40 Shots Fired 49 | 22 27 Gun 46 | 22 24 Cannon . | . . Launcher 3 | . 3 Special . | . . Kinetic 46 | 22 24 Thermal . | . . Explosive 3 | . 3 Electromagnetic . | . . Robot Hit Streak 7 | 6 7 Robot Miss Streak 3 | 3 3 Penetration Max . | . . Secondary Targets . | . . Shots Hit Robots 31 | 13 18 Core Hits 14 | 2 12 Critical Hits . | . . Critical Kills . | . . Critical Parts Destroyed . | . . Melee Attacks . | . . Impact . | . . Slashing . | . . Piercing . | . . Sneak Attacks . | . . Combat Hostiles . | . . Follow-up Attacks . | . . Damage Inflicted 487 | 124 363 Guns 276 | 124 152 Cannons . | . . Explosions 199 | . 199 Melee . | . . Ramming 12 | . 12 Kinetic 276 | 124 152 Thermal . | . . Explosive 199 | . 199 Electromagnetic . | . . Impact . | . . Slashing . | . . Piercing . | . . Highest Corruption 2 | . 2 Average Corruption 2 | . 2 Corruption Purged . | . . Overload Shots . | . . Overflow Damage 11 | . 11 Projectiles . | . . Explosions 11 | . 11 Melee . | . . Knockbacks . | . . Impact . | . . Kinetic . | . . Secondary . | . . Self-Inflicted Damage 43 | . 43 Shots 1 | . 1 Rammed 4 | . 4 Targets Rammed 4 | . 4 Kicked . | . . Crushed . | . . Highest Temperature 18 | 12 18 Average Temperature 10 | 8 10 Received Heat Transfer 168 | 60 108 Siege Activations . | . . Robots Corrupted . | . . Combat Hostiles . | . . Parts Fried . | . . Impact Corruptions . | . . Robots Melted . | . . Combat Hostiles . | . . Parts Melted . | . . Heat Transferred . | . . Parts Sabotaged . | . . Parts Stolen . | . . Parts Stripped . | . . Power Chain Reactions . | . . Missiles Intercepted . | . . Alert | -11 -10 ------- Run | Scr Mat Peak Influence 120 | 20 120 Initial 13 | . 13 Average 29 | 2 46 Maximum Alert Level . | . . Low Security (%) 100 | 100 100 Level 1 . | . . Level 2 . | . . Level 3 . | . . Level 4 . | . . Level 5 . | . . High Security . | . . Max Security . | . . Squads Dispatched . | . . Investigation . | . . Extermination . | . . Reinforcement . | . . Assault . | . . Garrison . | . . Intercept . | . . Construction Impeded . | . . Haulers Reinforced . | . . Stealth | -11 -10 --------- Run | Scr Mat Distress Signals 1 | . 1 Communications Jammed . | . . Distress Signals . | . . Times Spotted 11 | 1 10 Peak Tracking Total 6 | 1 6 Tactical Retreats 1 | . 1 Traps | -11 -10 ------- Run | Scr Mat Traps Triggered . | . . Indirectly . | . . Trap Hack Attempts . | . . Triggered . | . . Disarmed . | . . Reprogrammed . | . . Reused . | . . Traps Extracted . | . . Installed . | . . Triggered . | . . Machines | -11 -10 ---------- Run | Scr Mat Machines Disabled . | . . Max in Single Turn . | . . Machines Sabotaged . | . . Garrisons Compromised . | . . Overloaded Fab Kills . | . . Fab Network Shutdowns . | . . Hacking | -11 -10 --------- Run | Scr Mat Machines Accessed 1 | . 1 Terminals 1 | . 1 Fabricators . | . . Repair Stations . | . . Recycling Units . | . . Scanalyzers . | . . Garrison Access . | . . Total Hacks 1 | . 1 Successful 1 | . 1 Failed . | . . Catastrophic . | . . Database Lockouts . | . . Manual . | . . Terminals 1 | . 1 Fabricators . | . . Repair Stations . | . . Recycling Units . | . . Scanalyzers . | . . Garrison Access . | . . Terminal Hacks 1 | . 1 Record 1 | . 1 Fabricator Hacks . | . . Repair Station Hacks . | . . Recycling Unit Hacks . | . . Scanalyzer . | . . Garrison Access Hacks . | . . Unauthorized Hacks . | . . Terminals . | . . Fabricators . | . . Repair Stations . | . . Recycling Units . | . . Scanalyzers . | . . Garrison Access . | . . Data Cores Recovered . | . . Used . | . . Hacking Detections 1 | . 1 Full Trace Events . | . . Feedback Events . | . . Feedback Blocked . | . . Robot Schematics Acquired . | . . Robots Built . | . . Matter . | . . Time . | . . Total Robot Build Rating . | . . Part Schematics Acquired . | . . Parts Built . | . . Matter . | . . Time . | . . Total Part Build Rating . | . . Parts Repaired . | . . Time . | . . Parts Recycled . | . . Recycled Matter . | . . Retrieved Matter . | . . Retrieved Components . | . . Parts Scanalyzed . | . . Part Schematics Acquired . | . . Parts Damaged . | . . Bothacking | -11 -10 ------------ Run | Scr Mat Used RIF Installer . | . . Robots Hacked . | . . Non-combat . | . . Combat . | . . Robot Hacks Applied . | . . Relay Couplers Released . | . . Robots Rewired . | . . Allies Hacked . | . . Hacks Repelled . | . . Allies | -11 -10 -------- Run | Scr Mat Total Allies . | . . Largest Group . | . . Highest-Rated Group . | . . Highest-Rated Ally . | . . Total Orders . | . . Ally Attacks . | . . Total Damage . | . . Kills . | . . Allies Corrupted . | . . Allies Melted . | . . Intel | -11 -10 ------- Run | Scr Mat Robot Analysis Total . | . . Derelict Logs Recovered . | . . Drone Launches . | . . Drone Recoveries . | . . Exploration | -11 -10 ------------- Run | Scr Mat Turns Passed 232 | 91 141 Spaces Moved 177 | 65 112 Core 35 | 16 19 Treads . | . . Legs 10 | . 10 Wheels 132 | 49 83 Hover . | . . Flight . | . . Fastest Speed 50 | 50 50 Average Speed 76 | 72 79 Slowest Speed 120 | 80 120 Overloaded Moves . | . . Propulsion Burnouts . | . . Robots Hopped . | . . Cave-ins Triggered . | . . Exploration Rate (%) 9 | 6 13 Regions Visited 1 Branch Regions . Pre-discovered Areas . | . . Known Exits Taken . | . . Unknown Exits Taken 1 | 1 . Scrap Searched . | . . Spaces Dug 7 | . 7 Terrain Destroyed 16 | . 16 Melee . | . . Projectile . | . . AOE 16 | . 16 Terrain Rammed . | . . Walls Destroyed . | . . Machines Disabled . | . . Actions | -11 -10 --------- Run | Scr Mat Total 232 | 91 141 Wait . | . . Move 176 | 64 112 Hop . | . . Pick Up 12 | 9 3 Fast Attach . | . . Attach 9 | 5 4 Detach . | . . Swap 1 | . 1 Drop 3 | 2 1 Fire 27 | 11 16 Melee . | . . Ram 1 | . 1 Kick 3 | . 3 Crush . | . . Escape Stasis . | . . Rewire . | . . Trap . | . . Miscellaneous . | . . Route ------- -11/Scrapyard -10/Materials History --------- Turn | Location | Event 2 | -11/Scrapyard | Met Revision 17 49 | -11/Scrapyard | Discovered new exit (range 8) 92 | -11/Scrapyard | Entered Materials 214 | -10/Materials | Core integrity fell below 50% 228 | -10/Materials | Core integrity fell below 20% 233 | -10/Materials | Destroyed by S-10 Pest with Light Assault Rifle Last Messages --------------- 00213_ The unstable cave ceiling collapses. 00217_ R-06 Scavenger collects Aluminum Leg. 00219_ Lgt. Assault Rifle destroyed. 00220_ R-06 Scavenger collects Particle Gun. 00220_ Slammed into S-10 Pest. 00220_ Aluminum Leg destroyed. 00220_ System corrupted by crushing effect (+2). 00221_ Slammed into S-10 Pest. 00222_ Ion Engine destroyed. 00222_ Slammed into S-10 Pest. 00222_ Aluminum Leg permanently disabled. 00222_ Destabilizing: Short circuit. 00223_ Acquired 10 matter. 00223_ R-06 Scavenger collects Aluminum Leg. 00223_ Broken Aluminum Leg destroyed. 00223_ Slammed into S-10 Pest. 00227_ R-06 Scavenger collects Lgt. Ion Engine. 00231_ U-05 Engineer lays Concrete. 00232_ The unstable cave ceiling collapses. 00232_ U-05 Engineer lays Concrete. Map ----- +----------------------------------------------------+ | | | | | | | | | | | ????????????????????????????????????????? | | ????????????????????????????????????????? | | ????????????????????????????????????????? | | ????????????????????????????????????????? | | ????????????????????????????????????????? | | ????????????????????????????????????????? | | ????????????????????????????????????????? | | ??????????????????????##########????????? | | ??????????????????????# #????????? | | ??????????????????????# #????????? | | ??????????????????????# #????????? | | ??????????????????????# =! #????????? | | ??????????????????????# ==! ##??###### | | ??????????????????????# ! #### # | | ?????????????????????## # # "" # | | ?????????????????????# ss # "T # | | ?????????????????????# % ! # "" # | | ?????????????????????## # % ## + # | | ?????????????????????#### %* # # | | ????????????????????????# # # | | ????????????????????????#@ # # | | ?????????????##+######### ssr####### # | | ????????? u #?????###### | | ????????? #??????????? | | ????????? #?????????? | | ?????????? #?????????? | | ?????????? u # ?????????? | | ???????????## """ """ "????????? | | ????????????# """"""""" # ""???????? | | ????????????# """"" # ""???????? | | ????????????#??? ? +?""???????? | | ???????????????? ?? #?"????????? | | ???????????????? ??? #??????????? | | ???????????????????####### ###??????????? | | ?????????????????????????#+#????????????? | | ?????????????????????????? ?????????????? | | ????????????????????????????????????????? | | ????????????????????????????????????????? | | ????????????????????????????????????????? | | ????????????????????????????????????????? | | ????????????????????????????????????????? | | ????????????????????????????????????????? | | ????????????????????????????????????????? | | ????????????????????????????????????????? | | ????????????????????????????????????????? | +----------------------------------------------------+ Best States ------------- Heat Dissipation 25 Energy Generation 10 Energy Capacity 250 Matter Stores 300 Matter Capacity 300 Sight Range 16 Terrain Scan Density 10 Evasion (%) 50 Item Schematics ----------------- None Robot Schematics ------------------ None Fabricated ------------ Nothing Alien Tech Used ----------------- None Achievements -------------- None Challenges ------------ None Game ------ Seed LauncherLayeredLog Manual? 0 Play Time 00:07:19 Cumulative 7.9 hours Start 2021.03.30 @ 08:41:20 End 2021.03.30 @ 08:47:27 Sessions 1 Manual Loads 0 Difficulty Rogue Special Mode None Game No. 15 Rogue 15 Adventurer 0 Explorer 0 Win Type - Total 0 Types 0/0/0/0/0/0/0/0/0 Lore% 16 Gallery% 19 Achievement% 17 Wizard Run 0 Options --------- ASCII 0 Keyboard 0 Movement Numpad Keybinds 0 Fullscreen 1 Font 18/CogNarrow Map View 76x50 Tactical HUD 1 Map Filters NONE Filters NONE Steam 1 RUN: aee47c4c-4a6a-419d-92ca-0e4e69ca1fcf